Cogmind - Beta 10.2 @@@ ROGUE MODE // 2021.01.02 @ 06:35:25 Player: KillerFrogs Result: Destroyed by G-34 Mercenary with Small Laser Performance ------------- Evolutions (1) 500 Regions Visited (2) 400 Robots Destroyed (6) 30 Value Destroyed (186) 186 Prototype IDs (0) 0 Alien Tech Used (0) 0 Bonus (0) 0 TOTAL SCORE: 1116 Bonus ------- None Cogmind --------- Core Integrity 0/400 Matter 300/300 Energy 100/100 System Corruption 0% Temperature Cool (6) Movement Core (300) Ox5 Location -9/Materials Parts ------- > --- POWER (2) -------- (None) > --- PROPULSION (2) --- (None) > --- UTILITY (2) ------ Large Storage Unit Visual Processing Unit > --- WEAPON (3) ------- (None) > --- INVENTORY (10) --- Ion Engine Light Ion Engine Light Treads Light Treads Aluminum Leg Aluminum Leg Small Storage Unit Peak State ------------ > --- POWER ------------ Ion Engine > --- PROPULSION ------- Wheel Compact Wheel > --- UTILITY ---------- Small Storage Unit Visual Processing Unit > --- WEAPON ----------- Medium Laser Light Assault Rifle > --- INVENTORY -------- Light Treads Light Treads Small Matter Pod Light Assault Rifle [Rating: 8] Favorites ----------- Power Ion Engine Engine Ion Engine Propulsion Wheel Wheel Wheel Utility Small Storage Unit Storage Small Storage Unit Processor Visual Processing Unit Weapon Light Assault Rifle Energy Gun Medium Laser Ballistic Gun Light Assault Rifle Build | -11 -10 -9 ------- Run | Scr Mat Mat Slots Evolved 2 | . . 2 Power 1 | . . 1 Propulsion . | . . . Utility . | . . . Weapon 1 | . . 1 Parts Attached 12 | 5 7 . Power 2 | 1 1 . Engine 2 | 1 1 . Core . | . . . Reactor . | . . . Propulsion 2 | 2 . . Treads . | . . . Leg . | . . . Wheel 2 | 2 . . Hover . | . . . Flight . | . . . Utility 4 | 1 3 . Device . | . . . Storage 3 | 1 2 . Processor 1 | . 1 . Hackware . | . . . Protection . | . . . Artifact . | . . . Weapon 4 | 1 3 . Energy Gun 2 | . 2 . Energy Cannon . | . . . Ballistic Gun 2 | 1 1 . Ballistic Cannon . | . . . Launcher . | . . . Special Weapon . | . . . Impact Weapon . | . . . Slashing Weapon . | . . . Piercing Weapon . | . . . Special Melee Weapon . | . . . Unidentified Prototypes . | . . . Parts Lost 6 | . 3 3 Power 1 | . . 1 Propulsion 2 | . . 2 Utility . | . . . Weapon 3 | . 3 . Highest Loss Streak 3 | . 3 3 Average Slot Usage (%) 88 | . 95 34 Engine 12 | . 14 3 Wheel 26 | . 28 9 Storage 13 | . 14 11 Processor 12 | . 12 11 Energy Gun 11 | . 12 . Ballistic Gun 10 | . 12 . Naked Turns . | . . . Heaviest Build 24 | 10 24 21 Greatest Support 26 | 3 26 26 Greatest Overweight (x) 5 | 3 4 5 Average Overweight (x) 1 | 2 1 . Largest Inventory Capacity 10 | 6 10 10 Average Capacity 6 | 5 6 10 Most Carried 8 | 4 8 7 Average Carried 4 | 3 4 7 Final Capacity 10 | 6 10 10 Final Carried 7 | 4 7 7 Class Distribution -------------------- 100% | Mutant Dominant Class ---------------- Mutant | -10/Materials Mutant | -9/Materials Resources | -11 -10 -9 ----------- Run | Scr Mat Mat Matter Collected 327 | 192 135 . Remotely . | . . . Salvage Created 245 | . 245 . Parts 16 | . 16 . Haulers Intercepted . | . . . Recyclers Shooed . | . . . Parts Field Recycled . | . . . Retrieved Matter . | . . . Parts Self-Destructed . | . . . Prevented . | . . . Kills | -11 -10 -9 ------- Run | Scr Mat Mat Combat Hostiles Destroyed 5 | . 5 . Melee 1 | . 1 . Guns 4 | . 4 . Classes Destroyed 2 | . 2 . Watcher 1 | . 1 . Grunt 5 | . 5 . Best Kill Streak 2 | . 2 . Combat Bots Only 2 | . 2 . Max Kills in Single Turn 1 | . 1 . Gunslinging . | . . . Exploded . | . . . Melee 1 | . 1 . Uniques/NPCs Destroyed . | . . . Combat | -11 -10 -9 -------- Run | Scr Mat Mat Damage Taken 1101 | . 482 619 Core 579 | . 173 406 Absorbed by Shields . | . . . Core Remaining (%) 65 | 100 30 . Volleys Fired 27 | . 27 . Largest 2 | . 2 . Hottest 90 | . 90 . Shots Fired 49 | . 49 . Gun 49 | . 49 . Cannon . | . . . Launcher . | . . . Special . | . . . Kinetic 22 | . 22 . Thermal 27 | . 27 . Explosive . | . . . Electromagnetic . | . . . Robot Hit Streak 8 | . 8 . Robot Miss Streak 4 | . 4 . Penetration Max . | . . . Secondary Targets . | . . . Shots Hit Robots 30 | . 30 . Core Hits 19 | . 15 4 Critical Hits . | . . . Critical Kills . | . . . Critical Parts Destroyed . | . . . Melee Attacks . | . . . Impact . | . . . Slashing . | . . . Piercing . | . . . Sneak Attacks . | . . . Combat Hostiles . | . . . Follow-up Attacks . | . . . Damage Inflicted 353 | . 343 10 Guns 329 | . 329 . Cannons . | . . . Explosions . | . . . Melee . | . . . Ramming 24 | . 14 10 Kinetic 145 | . 145 . Thermal 184 | . 184 . Explosive . | . . . Electromagnetic . | . . . Impact . | . . . Slashing . | . . . Piercing . | . . . Highest Corruption . | . . . Average Corruption . | . . . Corruption Purged . | . . . Overload Shots . | . . . Overflow Damage . | . . . Projectiles . | . . . Explosions . | . . . Melee . | . . . Knockbacks . | . . . Impact . | . . . Kinetic . | . . . Secondary . | . . . Self-Inflicted Damage 10 | . 7 3 Shots . | . . . Rammed 12 | . 1 11 Targets Rammed 12 | . 1 11 Kicked . | . . . Crushed . | . . . Highest Temperature 217 | . 217 . Average Temperature 68 | . 68 . Received Heat Transfer 465 | . 273 192 Siege Activations . | . . . Robots Corrupted . | . . . Combat Hostiles . | . . . Parts Fried . | . . . Impact Corruptions . | . . . Robots Melted . | . . . Combat Hostiles . | . . . Parts Melted 1 | . 1 . Heat Transferred 531 | . 531 . Parts Sabotaged . | . . . Parts Stolen . | . . . Parts Stripped . | . . . Power Chain Reactions . | . . . Missiles Intercepted . | . . . Alert | -11 -10 -9 ------- Run | Scr Mat Mat Peak Influence 62 | . 62 20 Initial 20 | . . 20 Average 16 | . 25 8 Maximum Alert Level . | . . . Low Security (%) 100 | 100 100 100 Level 1 . | . . . Level 2 . | . . . Level 3 . | . . . Level 4 . | . . . Level 5 . | . . . High Security . | . . . Max Security . | . . . Squads Dispatched 4 | . 4 . Investigation 1 | . 1 . Extermination . | . . . Reinforcement 3 | . 3 . Assault . | . . . Garrison . | . . . Intercept . | . . . Construction Impeded . | . . . Haulers Reinforced . | . . . Stealth | -11 -10 -9 --------- Run | Scr Mat Mat Distress Signals . | . . . Communications Jammed . | . . . Distress Signals . | . . . Times Spotted 18 | . 12 6 Peak Tracking Total 5 | . 3 5 Tactical Retreats . | . . . Traps | -11 -10 -9 ------- Run | Scr Mat Mat Traps Triggered 1 | . 1 . Indirectly . | . . . Trap Hack Attempts . | . . . Triggered . | . . . Disarmed . | . . . Reprogrammed . | . . . Reused . | . . . Traps Extracted . | . . . Installed . | . . . Triggered . | . . . Machines | -11 -10 -9 ---------- Run | Scr Mat Mat Machines Disabled . | . . . Max in Single Turn . | . . . Machines Sabotaged . | . . . Garrisons Compromised . | . . . Overloaded Fab Kills . | . . . Fab Network Shutdowns . | . . . Hacking | -11 -10 -9 --------- Run | Scr Mat Mat Machines Accessed 1 | . 1 . Terminals 1 | . 1 . Fabricators . | . . . Repair Stations . | . . . Recycling Units . | . . . Scanalyzers . | . . . Garrison Access . | . . . Total Hacks 4 | . 4 . Successful 3 | . 3 . Failed 1 | . 1 . Catastrophic . | . . . Database Lockouts . | . . . Manual . | . . . Terminals 4 | . 4 . Fabricators . | . . . Repair Stations . | . . . Recycling Units . | . . . Scanalyzers . | . . . Garrison Access . | . . . Terminal Hacks 3 | . 3 . Record 2 | . 2 . Alert Level 1 | . 1 . Fabricator Hacks . | . . . Repair Station Hacks . | . . . Recycling Unit Hacks . | . . . Scanalyzer . | . . . Garrison Access Hacks . | . . . Unauthorized Hacks . | . . . Terminals . | . . . Fabricators . | . . . Repair Stations . | . . . Recycling Units . | . . . Scanalyzers . | . . . Garrison Access . | . . . Data Cores Recovered . | . . . Used . | . . . Hacking Detections . | . . . Full Trace Events . | . . . Feedback Events . | . . . Feedback Blocked . | . . . Robot Schematics Acquired . | . . . Robots Built . | . . . Matter . | . . . Time . | . . . Total Robot Build Rating . | . . . Part Schematics Acquired . | . . . Parts Built . | . . . Matter . | . . . Time . | . . . Total Part Build Rating . | . . . Parts Repaired . | . . . Time . | . . . Parts Recycled . | . . . Recycled Matter . | . . . Retrieved Matter . | . . . Retrieved Components . | . . . Parts Scanalyzed . | . . . Part Schematics Acquired . | . . . Parts Damaged . | . . . Bothacking | -11 -10 -9 ------------ Run | Scr Mat Mat Used RIF Installer . | . . . Robots Hacked . | . . . Non-combat . | . . . Combat . | . . . Robot Hacks Applied . | . . . Relay Couplers Released . | . . . Robots Rewired . | . . . Allies Hacked . | . . . Hacks Repelled . | . . . Allies | -11 -10 -9 -------- Run | Scr Mat Mat Total Allies . | . . . Largest Group . | . . . Highest-Rated Group . | . . . Highest-Rated Ally . | . . . Total Orders . | . . . Ally Attacks . | . . . Total Damage . | . . . Kills . | . . . Allies Corrupted . | . . . Allies Melted . | . . . Intel | -11 -10 -9 ------- Run | Scr Mat Mat Robot Analysis Total . | . . . Derelict Logs Recovered . | . . . Drone Launches . | . . . Drone Recoveries . | . . . Exploration | -11 -10 -9 ------------- Run | Scr Mat Mat Turns Passed 883 | 290 530 63 Spaces Moved 513 | 151 330 32 Core 279 | 151 126 2 Treads . | . . . Legs . | . . . Wheels 234 | . 204 30 Hover . | . . . Flight . | . . . Fastest Speed 50 | 50 90 90 Average Speed 145 | 184 132 105 Slowest Speed 300 | 200 250 300 Overloaded Moves . | . . . Propulsion Burnouts . | . . . Robots Hopped . | . . . Cave-ins Triggered . | . . . Exploration Rate (%) 18 | 8 40 8 Regions Visited 2 Branch Regions . Pre-discovered Areas . | . . . Known Exits Taken . | . . . Unknown Exits Taken 2 | 1 1 . Scrap Searched . | . . . Spaces Dug . | . . . Terrain Destroyed . | . . . Melee . | . . . Projectile . | . . . AOE . | . . . Terrain Rammed . | . . . Walls Destroyed . | . . . Machines Disabled . | . . . Actions | -11 -10 -9 --------- Run | Scr Mat Mat Total 585 | 164 378 43 Wait 4 | . 4 . Move 511 | 150 329 32 Hop . | . . . Pick Up 16 | 9 7 . Fast Attach . | . . . Attach 9 | 5 4 . Detach 1 | . 1 . Swap 3 | . 3 . Drop 2 | . 2 . Fire 27 | . 27 . Melee . | . . . Ram 12 | . 1 11 Kick . | . . . Crush . | . . . Escape Stasis . | . . . Rewire . | . . . Trap . | . . . Miscellaneous . | . . . Route ------- -11/Scrapyard -10/Materials (discovered 2 exits: [*Mat x2]) -9/Materials History --------- Turn | Location | Event 17 | -11/Scrapyard | Discovered new exit (range 15) 291 | -11/Scrapyard | Entered Materials 311 | -10/Materials | Build established: Mutant 720 | -10/Materials | Discovered new exit (range 17) 766 | -10/Materials | Core integrity fell below 50% 806 | -10/Materials | Discovered new exit (range 17) 816 | -10/Materials | Lost 3 parts (3w) 821 | -10/Materials | Entered another Materials area 821 | -9/Materials | Evolved 2 slots: Power x1, Weapon x1 867 | -9/Materials | Core integrity fell below 50% 874 | -9/Materials | Core integrity fell below 20% 881 | -9/Materials | Lost 3 parts (1p2n) 884 | -9/Materials | Destroyed by G-34 Mercenary with Small Laser Last Messages --------------- LOCATION=UNKNOWN GOAL=ESCAPE T-07 Excavator is excavating. Wheel destroyed. Ion Engine destroyed. Slammed into S-10 Pest. Destabilizing: Core damaged (-20). S-10 Pest destroyed. Slammed into S-10 Pest. Com. Wheel destroyed. Slammed into S-10 Pest. Destabilizing: Core damaged (-4). Fusion Modulator explodes. S-10 Pest destroyed. Scanalyzer disabled. S-10 Pest destroyed. Slammed into G-34 Mercenary. Destabilizing: Core damaged (-20). Slammed into G-34 Mercenary. [Achievement: First Step to Greatness] Map ----- +----------------------------------------------------+ | ????????????????????????#####????????? | | ????????????????????????# ########## | | ????????????????????????# # # | | ????????????????????????# # # | | ??????????????????????### # # | | ??????????????????????# # # # | | ??????????????????????# + """ # | | ??????????????????????### # """"" # | | ????????????????????????# # """"" ? | | ????????????????????????# # """"" ?? | | ????????????????????????# # """ ?? | | ????????????????????????# ########?? | | ????????????????????????# #????????? | | ????????????????????????# #????????? | | ????????????????????????# ########?? | | ????????????????????????# # #?? | | ????????????????????????# # #?? | | ????????????????????????# # """ #?? | | ?????????????????######## + """ #?? | | ?????????????????# # """ #?? | | ?????????????????+ # #?? | | ?????????????????# ;;######?? | | ?????????????????# ;;=;g;;;;##????? | | ?????????????????# g; % % ;#????? | | ?????????????????# ; % ;#????? | | ?????????????????#### ; %@%% ;#????? | | ????????????????????# ;% ;#????? | | ????????????????????# ;[% ##????? | | ????????????????????# ; * #?????? | | ??????????????????? # " #?????? | | ????????????????? # S" #?????? | | ??????????????? ^""" ?# #?????? | | ??????????????" """ ?##########?????? | | ????????????? " """?????????????????? | | ?????????????? ?? ?????????????????? | | ????????????? ??? ??????????????????? | | ????????????????? ??????????????????? | | ????????????????#????????????????????? | | ?????????????????????????????????????? | | ?????????????????????????????????????? | | ?????????????????????????????????????? | | ?????????????????????????????????????? | | ?????????????????????????????????????? | | ?????????????????????????????????????? | | ?????????????????????????????????????? | | ?????????????????????????????????????? | | ?????????????????????????????????????? | | ?????????????????????????????????????? | | ?????????????????????????????????????? | | ?????????????????????????????????????? | +----------------------------------------------------+ Best States ------------- Heat Dissipation 28 Energy Generation 10 Energy Capacity 250 Matter Stores 300 Matter Capacity 350 Sight Range 18 Terrain Scan Density 10 Evasion (%) 50 Item Schematics ----------------- None Robot Schematics ------------------ None Fabricated ------------ Nothing Alien Tech Used ----------------- None Achievements -------------- First Step to Greatness Fist Fight Challenges ------------ None Game ------ Seed BeamDisposableFrame Manual? 0 Play Time 00:14:06 Cumulative 0.4 hours Start 2021.01.02 @ 06:22:11 End 2021.01.02 @ 06:35:25 Sessions 1 Manual Loads 0 Difficulty Rogue Special Mode None Game No. 3 Rogue 3 Adventurer 0 Explorer 0 Win Type - Total 0 Types 0/0/0/0/0/0/0/0/0 Lore% 0 Gallery% 2 Achievement% 1 Wizard Run 0 Options --------- ASCII 0 Keyboard 0 Movement Numpad Keybinds 0 Fullscreen 1 Font 18/SmallcapsGlow Map View 76x50 Tactical HUD 0 Map Filters NONE Filters NONE Steam 1 RUN: bfc74ea1-faca-491e-b70f-7508d6e37af9